Cogmind - Beta 15 @@@ ROGUE MODE // 2025.08.02 @ 14:58:01 Player: Phosphophyllite Result: Destroyed by RX-I26(R) with Subdweller Shrapnel Launcher Performance ------------- Evolutions (0) 0 Regions Visited (3) 600 Robots Destroyed (14) 70 Value Destroyed (363) 363 Prototype IDs (0) 0 Alien Tech Used (0) 0 Bonus (0) 0 TOTAL SCORE: 1033 Bonus ------- None Cogmind --------- Core Integrity 0/250 Matter 237/300 Energy 117/125 System Corruption 0% Temperature Cool (0) Movement Treading (160) Location -10/Subcaves Parts ------- > --- POWER (1) -------- Light Ion Engine > --- PROPULSION (2) --- Light Treads Light Treads > --- UTILITY (2) ------ Small Storage Unit > --- WEAPON (2) ------- Subdweller Laser > --- INVENTORY (8) ---- Subdweller Monowheel Heat Sink Improved Heat Sink Scrap Shield Medium Laser Assault Rifle Subdweller Shrapnel Launcher Peak State ------------ > --- POWER ------------ Light Nuclear Core > --- PROPULSION ------- Aluminum Leg Aluminum Leg > --- UTILITY ---------- Small Storage Unit Seismic Detector > --- WEAPON ----------- Medium Laser Assault Rifle > --- INVENTORY -------- Light Ion Engine Light Treads Light Treads Wheel Heat Sink Terrain Scanner Improved Terrain Scanner Medium Laser [Rating: 10] Favorites ----------- Power Ion Engine Engine Ion Engine Power Core Light Nuclear Core Propulsion Aluminum Leg Treads Light Treads Leg Aluminum Leg Utility Small Storage Unit Device Seismic Detector Storage Small Storage Unit Weapon Assault Rifle Energy Gun Medium Laser Ballistic Gun Assault Rifle Build | -11 -10 -10 -10 ------- Run | Yrd Mat Min Sub Slots Evolved . | . . . . Power . | . . . . Propulsion . | . . . . Utility . | . . . . Weapon . | . . . . Parts Attached 17 | 7 4 . 6 Power 3 | 1 1 . 1 Engine 2 | 1 . . 1 Core 1 | . 1 . . Reactor . | . . . . Propulsion 6 | 2 2 . 2 Treads 2 | . . . 2 Leg 4 | 2 2 . . Wheel . | . . . . Hover . | . . . . Flight . | . . . . Utility 2 | 2 . . . Device 1 | 1 . . . Storage 1 | 1 . . . Processor . | . . . . Hackware . | . . . . Protection . | . . . . Artifact . | . . . . Weapon 6 | 2 1 . 3 Energy Gun 4 | 1 1 . 2 Energy Cannon . | . . . . Ballistic Gun 2 | 1 . . 1 Ballistic Cannon . | . . . . Launcher . | . . . . Special Weapon . | . . . . Impact Weapon . | . . . . Slashing Weapon . | . . . . Piercing Weapon . | . . . . Special Melee Weapon . | . . . . Unidentified Prototypes . | . . . . Parts Lost 5 | . . 2 3 Power 1 | . . 1 . Propulsion 1 | . . . 1 Utility 1 | . . . 1 Weapon 2 | . . 1 1 Highest Loss Streak 2 | . . 2 1 To Critical Strikes . | . . . . Average Backups 6 | 5 8 8 6 Power . | . 1 1 . Propulsion 2 | 3 3 2 1 Utility 2 | . 2 3 3 Weapon 1 | . 1 2 2 Tool/Special . | . . . . Unused Backups 10 | . 5 . 5 Power 1 | . 1 . . Propulsion 2 | . 2 . . Utility 5 | . 1 . 4 Weapon 2 | . 1 . 1 Tool/Special . | . . . . Average Slot Usage (%) 95 | . 100 100 88 Engine 10 | . 10 . 12 Core 3 | . 3 14 . Treads 1 | . . . 4 Leg 24 | . 28 28 19 Device 12 | . 14 14 10 Storage 14 | . 14 14 14 Energy Gun 13 | . 14 14 12 Ballistic Gun 13 | . 14 14 13 Peak Build Rating 10 | 8 10 10 9 Average Rating 7 | 5 8 9 8 On Entrance 6 | . 8 10 6 Naked Turns . | . . . . Heaviest Build 15 | 14 15 15 14 Greatest Support 40 | 20 20 20 40 Greatest Overweight (x) 1 | . . . 1 Average Overweight (x) . | . . . . Largest Inventory Capacity 8 | 8 8 8 8 Average Capacity 7 | 7 8 8 8 Most Carried 8 | 8 8 8 8 Average Carried 7 | 5 7 8 7 Final Capacity 8 | 8 8 8 8 Final Carried 8 | 8 8 8 8 Class Distribution -------------------- 70% | Mutant 29% | Scavenger-Mutant Dominant Class ---------------- Mutant | -10/Materials Scavenger-Mutant | -10/Mines Scavenger-Mutant | -10/Subcaves Resources | -11 -10 -10 -10 ----------- Run | Yrd Mat Min Sub Matter Collected 417 | 181 53 . 183 Remotely . | . . . . Salvage Created 450 | 32 206 42 170 Parts 33 | 5 9 6 13 Haulers Intercepted . | . . . . Recyclers Shooed . | . . . . Parts Field Recycled . | . . . . Retrieved Matter . | . . . . Parts Self-Destructed . | . . . . Prevented . | . . . . Kills | -11 -10 -10 -10 ------- Run | Yrd Mat Min Sub Combat Hostiles Destroyed 11 | . 4 3 4 Guns 11 | . 4 3 4 Classes Destroyed 6 | 2 2 1 1 Worker 1 | 1 . . . Tunneler 1 | 1 . . . Watcher 1 | . 1 . . Swarmer 3 | . . 3 . Grunt 4 | . 4 . . Subdweller 4 | . . . 4 Best Kill Streak 5 | 1 5 3 4 Combat Bots Only 4 | . 3 3 4 Max Kills in Single Turn 1 | 1 1 1 1 Gunslinging . | . . . . Exploded . | . . . . Melee . | . . . . Uniques/NPCs Destroyed . | . . . . Combat | -11 -10 -10 -10 -------- Run | Yrd Mat Min Sub Hostile Shots Fired 70 | . 30 17 23 Missed 19 | . 6 4 9 Hits 51 | . 24 13 14 Projectile 51 | . 24 13 14 AOE 8 | . . 4 4 Damage Taken 950 | . 278 227 445 Core 273 | . 43 42 188 Absorbed by Shields . | . . . . Core Remaining (%) 100 | 100 . . . Volleys Fired 48 | 9 20 7 12 Largest 2 | 2 2 2 2 Hottest 75 | 60 70 70 75 Shots Fired 93 | 18 40 14 21 Gun 93 | 18 40 14 21 Cannon . | . . . . Launcher . | . . . . Special . | . . . . Kinetic 45 | 9 20 7 9 Thermal 48 | 9 20 7 12 Explosive . | . . . . Electromagnetic . | . . . . Robot Hit Streak 13 | 5 7 4 13 Robot Miss Streak 3 | 3 2 3 1 Penetration Max . | . . . . Secondary Targets 3 | . 2 . 1 Max Gunslinging Chain 1 | . 1 . 1 Shots Hit Robots 63 | 10 28 7 18 Core Hits 23 | 2 9 3 9 Critical Kills . | . . . . Critical Parts Destroyed . | . . . . Critical Strikes 3 | . 2 . 1 Burn 3 | . 2 . 1 Melee Attacks . | . . . . Impact . | . . . . Slashing . | . . . . Piercing . | . . . . Sneak Attacks . | . . . . Combat Hostiles . | . . . . Follow-up Attacks . | . . . . Damage Inflicted 853 | 137 355 87 274 Guns 853 | 137 355 87 274 Cannons . | . . . . Explosions . | . . . . Melee . | . . . . Ramming . | . . . . Kinetic 383 | 60 156 63 104 Thermal 470 | 77 199 24 170 Explosive . | . . . . Electromagnetic . | . . . . Impact . | . . . . Slashing . | . . . . Piercing . | . . . . Highest Corruption . | . . . . Average Corruption . | . . . . Corruption Purged . | . . . . Corruption Blocked . | . . . . Overload Shots . | . . . . Overflow Damage . | . . . . Projectiles . | . . . . Explosions . | . . . . Melee . | . . . . Knockbacks . | . . . . Impact . | . . . . Kinetic . | . . . . Secondary . | . . . . Self-Inflicted Damage . | . . . . Shots . | . . . . Rammed . | . . . . Targets Rammed . | . . . . Kicked . | . . . . Crushed . | . . . . Highest Temperature 206 | . 206 105 6 Average Temperature 83 | . 94 56 4 Received Heat Transfer 204 | . 156 . 48 Effects 1 | . 1 . . Energy Bleed 1 | . 1 . . Siege Activations . | . . . . Martial Activations . | . . . . Shielding Activations . | . . . . Robots Disrupted . | . . . . Combat Hostiles . | . . . . Robots Corrupted . | . . . . Combat Hostiles . | . . . . Parts Fried . | . . . . Impact Corruptions . | . . . . Robots Melted . | . . . . Combat Hostiles . | . . . . Parts Melted 5 | . 3 . 2 Heat Transferred 1471 | 175 740 74 482 Parts Sabotaged . | . . . . Parts Stolen . | . . . . Parts Stripped . | . . . . Power Chain Reactions . | . . . . Alert | -11 -10 -10 -10 ------- Run | Yrd Mat Min Sub Maximum Alert Level . | . . . . Low Security (%) 100 | 100 100 100 . Level 1 . | . . . . Level 2 . | . . . . Level 3 . | . . . . Level 4 . | . . . . Level 5 . | . . . . High Security . | . . . . Max Security . | . . . . Peak Influence 94 | 5 93 94 . Initial 24 | . . 24 . Average 21 | . 32 72 . Influence Increases 203 | 10 123 70 . Destroy 0b10 Robot/C 140 | . 80 60 . Destroy 0b10 Robot/NC 15 | 10 5 . . Destroy Leader 32 | . 22 10 . Destroy Structure 1 | . 1 . . Lose Combat Pursuer 15 | . 15 . . Influence Decreases 203 | 10 60 69 64 Entered New Map 73 | . . 39 34 Time Decay 110 | 10 60 10 30 Lost Part 20 | . . 20 . Squads Dispatched 1 | . 1 . . Investigation 1 | . 1 . . Extermination . | . . . . Reinforcement . | . . . . Assault . | . . . . Garrison . | . . . . Intercept . | . . . . Searches Triggered . | . . . . Construction Impeded . | . . . . Haulers Reinforced . | . . . . Active Scanning Responses . | . . . . Cargo Convoy Interrupts . | . . . . Stealth | -11 -10 -10 -10 --------- Run | Yrd Mat Min Sub Distress Signals 2 | . 2 . . Communications Jammed . | . . . . Distress Signals . | . . . . Times Spotted 25 | . 8 6 11 Peak Tracking Total 6 | . 5 4 6 Tactical Retreats 4 | . 1 . 3 Traps | -11 -10 -10 -10 ------- Run | Yrd Mat Min Sub Traps Triggered . | . . . . Indirectly . | . . . . Trap Hack Attempts . | . . . . Triggered . | . . . . Disarmed . | . . . . Reprogrammed . | . . . . Reused . | . . . . Traps Extracted . | . . . . Installed . | . . . . Triggered . | . . . . Machines | -11 -10 -10 -10 ---------- Run | Yrd Mat Min Sub Machines Disabled . | . . . . Max in Single Turn . | . . . . Machines Repaired . | . . . . Machines Dismantled . | . . . . Machines Sabotaged . | . . . . Overloaded Fab Kills . | . . . . Hacking | -11 -10 -10 -10 --------- Run | Yrd Mat Min Sub Machines Accessed 2 | . 2 . . Terminals 2 | . 2 . . Fabricators . | . . . . Repair Stations . | . . . . Recycling Units . | . . . . Scanalyzers . | . . . . Garrison Access . | . . . . Total Hacks 5 | . 5 . . Successful 2 | . 2 . . Failed 3 | . 3 . . Catastrophic . | . . . . Database Lockouts . | . . . . Manual 5 | . 5 . . Terminals 5 | . 5 . . Fabricators . | . . . . Repair Stations . | . . . . Recycling Units . | . . . . Scanalyzers . | . . . . Garrison Access . | . . . . Terminal Hacks . | . . . . Fabricator Hacks . | . . . . Repair Station Hacks . | . . . . Recycling Unit Hacks . | . . . . Scanalyzer . | . . . . Garrison Access Hacks . | . . . . Unauthorized Hacks 2 | . 2 . . Terminals 2 | . 2 . . Botnet 1 | . 1 . . Operators 1 | . 1 . . Fabricators . | . . . . Repair Stations . | . . . . Recycling Units . | . . . . Scanalyzers . | . . . . Garrison Access . | . . . . Data Cores Recovered . | . . . . Used . | . . . . Hacking Detections 2 | . 2 . . Full Trace Events 1 | . 1 . . Feedback Events . | . . . . Feedback Blocked . | . . . . Robot Schematics Acquired . | . . . . Robots Built . | . . . . Authchips . | . . . . Time . | . . . . Total Robot Build Rating . | . . . . Part Schematics Acquired . | . . . . Parts Built . | . . . . Authchips . | . . . . Time . | . . . . Total Part Build Rating . | . . . . Parts Repaired . | . . . . Time . | . . . . Parts Recycled . | . . . . Recycled Matter . | . . . . Retrieved Matter . | . . . . Retrieved Components . | . . . . Parts Scanalyzed . | . . . . Part Schematics Acquired . | . . . . Parts Damaged . | . . . . Bothacking | -11 -10 -10 -10 ------------ Run | Yrd Mat Min Sub Used RIF Installer . | . . . . Robots Hacked . | . . . . Non-combat . | . . . . Combat . | . . . . Robot Hacks Applied . | . . . . Relay Couplers Released . | . . . . Fabnet Peak Effective % . | . . . . Robots Rewired . | . . . . Allies Hacked . | . . . . Hacks Repelled . | . . . . Allies | -11 -10 -10 -10 -------- Run | Yrd Mat Min Sub Total Allies . | . . . . Largest Group . | . . . . Highest-Rated Group . | . . . . Highest-Rated Ally . | . . . . Total Orders . | . . . . Ally Attacks . | . . . . Total Damage . | . . . . Kills . | . . . . Allies Corrupted . | . . . . Allies Melted . | . . . . Intel | -11 -10 -10 -10 ------- Run | Yrd Mat Min Sub Active Infowar (turns) 425 | 14 239 24 148 Seismic 425 | 14 239 24 148 Robot Analysis Total . | . . . . Derelict Logs Recovered . | . . . . Drone Launches . | . . . . Drone Recoveries . | . . . . Exploration | -11 -10 -10 -10 ------------- Run | Yrd Mat Min Sub Turns Passed 629 | 177 239 24 189 Spaces Moved 338 | 90 136 3 109 Core 1 | 1 . . . Treads 11 | . . . 11 Legs 326 | 89 136 3 98 Wheels . | . . . . Hover . | . . . . Flight . | . . . . Fastest Speed 50 | 50 120 120 120 Average Speed 124 | 119 120 120 133 Slowest Speed 190 | 120 120 120 190 Overloaded Moves . | . . . . Propulsion Burnouts . | . . . . Robots Hopped . | . . . . Potential Cave-ins . | . . . . Cave-ins Triggered . | . . . . Exploration Rate (%) 12 | 7 28 5 10 Regions Visited 3 Branch Regions 2 Pre-discovered Areas . | . . . . Known Exits Taken . | . . . . Unknown Exits Taken 3 | 1 1 1 . Scrap Searched 1 | . . . 1 Spaces Dug . | . . . . Terrain Destroyed . | . . . . Melee . | . . . . Projectile . | . . . . AOE . | . . . . Terrain Rammed . | . . . . Walls Destroyed . | . . . . Machines Disabled . | . . . . Actions | -11 -10 -10 -10 --------- Run | Yrd Mat Min Sub Total 456 | 138 176 9 133 Wait 27 | 25 2 . . Move 335 | 89 135 2 109 Hop . | . . . . Pick Up 17 | 8 6 . 3 Fast Attach 7 | 7 . . . Attach 3 | . . . 3 Detach . | . . . . Swap 7 | . 4 . 3 Drop 12 | . 9 . 3 Fire 48 | 9 20 7 12 Melee . | . . . . Ram . | . . . . Kick . | . . . . Crush . | . . . . Escape Stasis . | . . . . Rewire . | . . . . Trap . | . . . . Miscellaneous . | . . . . Route ------- -11/Scrapyard -10/Materials -10/Mines -10/Subcaves History --------- Turn | Location | Event 12 | -11/Scrapyard | Discovered new exit (range 15) 178 | -11/Scrapyard | Entered Materials 303 | -10/Materials | Build established: Mutant 410 | -10/Materials | Discovered new exit (range 5) 417 | -10/Materials | Entered Mines 418 | -10/Mines | Assembled infested the area 437 | -10/Mines | Discovered new exit (range 4) 441 | -10/Mines | Entered Subcaves 442 | -10/Subcaves | Approached by a straggling Scientist 485 | -10/Subcaves | Ambushed by Subdwellers from Twisted Machinery 579 | -10/Subcaves | Core integrity fell below 50% 627 | -10/Subcaves | Core integrity fell below 20% 628 | -10/Subcaves | Ambushed by Subdweller buried in earth 630 | -10/Subcaves | Destroyed by RX-I26(R) with Subdweller Shrapnel Launcher Last Messages --------------- 1C-8US(c): "I think it's somewhere northeast of here" 00545_ Aluminum Leg destroyed. 00575_ CX-YTJ(R) suffers critical hit (Burn). 00580_ Disposable Heat Sink melted. 00580_ CX-YTJ(R) destroyed. 00586_ BJ-871(R) destroyed. 00586_ Switching to secondary target: EP-GEF(R). 00589_ Seismic Detector destroyed. 00589_ EP-GEF(R) destroyed. 00596_ FM-BWF(R) affixes Scrap Shield Fragment to Scrap Shield. 00598_ Disposable Heat Sink melted. 00598_ FM-BWF(R) destroyed. 00603_ Dropped Aluminum Leg. 00610_ Acquired 76 matter. 00612_ 37-HOF(R) destroyed. 00616_ Acquired Sub. Shrapnel Launcher. 00621_ Dropped Mining Laser. 00621_ Acquired Sub. Monowheel. 00623_ Battle Rifle destroyed. 00629_ 0R-2IT(R): "NOSTUCKSUB!" Map ----- +----------------------------------------------------+ | ?????????????????????????????????????????????????? | | ?????????????????????????????????????????????????? | | ?????????????????????????????????????????????????? | | ?????????????????????????????????????????????????? | | ?????????????????????????????????????????????????? | | ?????????????????????????????????????????????????? | | ?????????????????????????????????????????????????? | | ?????????????????????????????????????????????????? | | ?????????????????????????????????????????????????? | | ?????????????????????????????????????????????????? | | ?????????????????????????????????????????????????? | | ?????????????????????????????????????????????????? | | ?????????????????????????????????????????????????? | | ?????????????????????????????????????????????????? | | ?????????????????????????????????????????????????? | | ?????????????????????????????????????????????????? | | ?????????????????????????????????????????????????? | | ?????????????????????????????????????????????????? | | ?????????????????????????????????????????????????? | | ???????????????????????######????????????????????? | | ????????????????????#### # ########?????????????? | | ??????????????##?##?# # < #?????????????? | | ?????????????##""# ## R R<#?????????????? | | ???????????"##" #?????????????? | | ???????????""" !& R = &<#????? ???????? | | ?????????????????# = % @ R #??????"??????? | | ?????????????????### ! ####??????? ?##### | | ???????????????????## #??????????? # | | ????????????????????# % #???????????? # | | ????????????????????## ; ;#????????????## " | | ?????????????????????#### R; ; ;####???###?###" | | ???????????????????????## # # # ##?## ### | | ???????????????????? ## ### | | ???????????????????"""" # # ## #### | | ???????????????????" "" # #?? | | ???????????????????"""""""""" #?? | | ???????????????????? "" ## ### ### | | ???????????????????# "" #### ####?## | | ????????????????????# "" ### # ##### | | ?????????????????????# "" ### | | ?????????????????????#" "" #?# | | ?????????????????????### "" # ## ### #?# ### | | ???????????????????????##"" ######??? ##?# ?? | | ????????????????????????##"" "#?????????? #? | | ?????????????????????????##""#???????????? #? | | ??????????????????????????###????????????#### ? | | ????????????????????????????????????????????? ? | | ????????????????????????????????????????????? | | ????????????????????????????????????????????? ? | | ?????????????????????????????????????????????? ??? | +----------------------------------------------------+ Best States ------------- Heat Dissipation 25 Energy Generation 14 Energy Capacity 250 Matter Stores 237 Matter Capacity 300 Sight Range 16 Terrain Scan Density 10 Evasion (%) 55 Recoil Reduction 2 Item Schematics ----------------- None Robot Schematics ------------------ None Fabricated ------------ Nothing Repaired ---------- Nothing Alien Tech Used ----------------- None Achievements -------------- None Challenges ------------ None Game ------ Seed DeflectorArcArticulator Manual? 0 Play Time 00:09:52 Cumulative 47.0 hours Start 2025.08.02 @ 14:50:40 End 2025.08.02 @ 14:58:01 Sessions 1 Manual Loads 0 Difficulty Rogue Special Mode None Game No. 48 Rogue 44 Adventurer 4 Explorer 0 Win Type - Total 1 Types 1/0/0/0/0/0/0/0/0/0 Lore% 30 Gallery% 35 Achievement% 35 Wizard Run 0 Options --------- Layout 0 ASCII 0 Keyboard 1 Movement Numpad Keybinds 0 Fullscreen 2 Font 24/Smallcaps Map View 76x50 Zoom Use 0% Tactical HUD 1 Map Filters NONE Filters NONE Steam 1 RUN: 1fc9062f-1ae6-4c5c-a06a-86159378279e